Workbook

Sheet Сводная
A1: Дата | B1: Июль
A2: Товар | B2: Диваны
A4: Названия строк | B4: Сумма по полю Кол-во | C4: Сумма по полю Сумма | D4: Сумма по полю Сумма накопит
A5: Иванов | B5: 5 | C5: 350 | D5: 23640
A6: Сидоров | B6: 12 | C6: 840 | D6: 21930
A7: Общий итог | B7: 17 | C7: 1190 | D7: 45570

Sheet Продажи
D4: Дата | E4: Товар | F4: Продавец | G4: Кол-во | H4: Сумма | I4: Сумма накопит | M4: Фрукт | N4: Цена
D5: Январь | E5: Стулья | F5: Петров | G5: 6 | H5: =IFERROR(Продажи_tb[[#This Row],[Кол-во]]*VLOOKUP(Продажи_tb[[#This Row],[Товар]],$M$5:$N$7,2,),"") -> 300 | I5: =SUM($H$4:H4) -> 0 | M5: Стулья | N5: 50
D6: Январь | E6: Табретки | F6: Петров | G6: 13 | H6: =IFERROR(Продажи_tb[[#This Row],[Кол-во]]*VLOOKUP(Продажи_tb[[#This Row],[Товар]],$M$5:$N$7,2,),"") -> 780 | I6: =SUM($H$4:H5) -> 300 | M6: Табретки | N6: 60
D7: Январь | E7: Диваны | F7: Петров | G7: 10 | H7: =IFERROR(Продажи_tb[[#This Row],[Кол-во]]*VLOOKUP(Продажи_tb[[#This Row],[Товар]],$M$5:$N$7,2,),"") -> 700 | I7: =SUM($H$4:H6) -> 1080 | M7: Диваны | N7: 70
D8: Январь | E8: Стулья | F8: Иванов | G8: 3 | H8: =IFERROR(Продажи_tb[[#This Row],[Кол-во]]*VLOOKUP(Продажи_tb[[#This Row],[Товар]],$M$5:$N$7,2,),"") -> 150 | I8: =SUM($H$4:H7) -> 1780
D9: Январь | E9: Стулья | F9: Сидоров | G9: 6 | H9: =IFERROR(Продажи_tb[[#This Row],[Кол-во]]*VLOOKUP(Продажи_tb[[#This Row],[Товар]],$M$5:$N$7,2,),"") -> 300 | I9: =SUM($H$4:H8) -> 1930
D10: Январь | E10: Диваны | F10: Иванов | G10: 8 | H10: =IFERROR(Продажи_tb[[#This Row],[Кол-во]]*VLOOKUP(Продажи_tb[[#This Row],[Товар]],$M$5:$N$7,2,),"") -> 560 | I10: =SUM($H$4:H9) -> 2230
D11: Февраль | E11: Стулья | F11: Петров | G11: 8 | H11: =IFERROR(Продажи_tb[[#This Row],[Кол-во]]*VLOOKUP(Продажи_tb[[#This Row],[Товар]],$M$5:$N$7,2,),"") -> 400 | I11: =SUM($H$4:H10) -> 2790
D12: Февраль | E12: Табретки | F12: Петров | G12: 15 | H12: =IFERROR(Продажи_tb[[#This Row],[Кол-во]]*VLOOKUP(Продажи_tb[[#This Row],[Товар]],$M$5:$N$7,2,),"") -> 900 | I12: =SUM($H$4:H11) -> 3190
D13: Февраль | E13: Диваны | F13: Петров | G13: 12 | H13: =IFERROR(Продажи_tb[[#This Row],[Кол-во]]*VLOOKUP(Продажи_tb[[#This Row],[Товар]],$M$5:$N$7,2,),"") -> 840 | I13: =SUM($H$4:H12) -> 4090
D14: Февраль | E14: Стулья | F14: Иванов | G14: 11 | H14: =IFERROR(Продажи_tb[[#This Row],[Кол-во]]*VLOOKUP(Продажи_tb[[#This Row],[Товар]],$M$5:$N$7,2,),"") -> 550 | I14: =SUM($H$4:H13) -> 4930
D15: Февраль | E15: Табретки | F15: Иванов | G15: 14 | H15: =IFERROR(Продажи_tb[[#This Row],[Кол-во]]*VLOOKUP(Продажи_tb[[#This Row],[Товар]],$M$5:$N$7,2,),"") -> 840 | I15: =SUM($H$4:H14) -> 5480
D16: Февраль | E16: Диваны | F16: Сидоров | G16: 9 | H16: =IFERROR(Продажи_tb[[#This Row],[Кол-во]]*VLOOKUP(Продажи_tb[[#This Row],[Товар]],$M$5:$N$7,2,),"") -> 630 | I16: =SUM($H$4:H15) -> 6320
D17: Март | E17: Стулья | F17: Петров | G17: 8 | H17: =IFERROR(Продажи_tb[[#This Row],[Кол-во]]*VLOOKUP(Продажи_tb[[#This Row],[Товар]],$M$5:$N$7,2,),"") -> 400 | I17: =SUM($H$4:H16) -> 6950
D18: Март | E18: Табретки | F18: Петров | G18: 15 | H18: =IFERROR(Продажи_tb[[#This Row],[Кол-во]]*VLOOKUP(Продажи_tb[[#This Row],[Товар]],$M$5:$N$7,2,),"") -> 900 | I18: =SUM($H$4:H17) -> 7350
D19: Март | E19: Диваны | F19: Петров | G19: 11 | H19: =IFERROR(Продажи_tb[[#This Row],[Кол-во]]*VLOOKUP(Продажи_tb[[#This Row],[Товар]],$M$5:$N$7,2,),"") -> 770 | I19: =SUM($H$4:H18) -> 8250
D20: Март | E20: Стулья | F20: Иванов | G20: 12 | H20: =IFERROR(Продажи_tb[[#This Row],[Кол-во]]*VLOOKUP(Продажи_tb[[#This Row],[Товар]],$M$5:$N$7,2,),"") -> 600 | I20: =SUM($H$4:H19) -> 9020
D21: Март | E21: Табретки | F21: Сидоров | G21: 10 | H21: =IFERROR(Продажи_tb[[#This Row],[Кол-во]]*VLOOKUP(Продажи_tb[[#This Row],[Товар]],$M$5:$N$7,2,),"") -> 600 | I21: =SUM($H$4:H20) -> 9620
D22: Март | E22: Диваны | F22: Иванов | G22: 6 | H22: =IFERROR(Продажи_tb[[#This Row],[Кол-во]]*VLOOKUP(Продажи_tb[[#This Row],[Товар]],$M$5:$N$7,2,),"") -> 420 | I22: =SUM($H$4:H21) -> 10220
D23: Апрель | E23: Стулья | F23: Петров | G23: 3 | H23: =IFERROR(Продажи_tb[[#This Row],[Кол-во]]*VLOOKUP(Продажи_tb[[#This Row],[Товар]],$M$5:$N$7,2,),"") -> 150 | I23: =SUM($H$4:H22) -> 10640
D24: Апрель | E24: Табретки | F24: Сидоров | G24: 13 | H24: =IFERROR(Продажи_tb[[#This Row],[Кол-во]]*VLOOKUP(Продажи_tb[[#This Row],[Товар]],$M$5:$N$7,2,),"") -> 780 | I24: =SUM($H$4:H23) -> 10790
D25: Апрель | E25: Диваны | F25: Петров | G25: 13 | H25: =IFERROR(Продажи_tb[[#This Row],[Кол-во]]*VLOOKUP(Продажи_tb[[#This Row],[Товар]],$M$5:$N$7,2,),"") -> 910 | I25: =SUM($H$4:H24) -> 11570
D26: Апрель | E26: Стулья | F26: Сидоров | G26: 7 | H26: =IFERROR(Продажи_tb[[#This Row],[Кол-во]]*VLOOKUP(Продажи_tb[[#This Row],[Товар]],$M$5:$N$7,2,),"") -> 350 | I26: =SUM($H$4:H25) -> 12480
D27: Апрель | E27: Табретки | F27: Иванов | G27: 9 | H27: =IFERROR(Продажи_tb[[#This Row],[Кол-во]]*VLOOKUP(Продажи_tb[[#This Row],[Товар]],$M$5:$N$7,2,),"") -> 540 | I27: =SUM($H$4:H26) -> 12830
D28: Апрель | E28: Диваны | F28: Иванов | G28: 9 | H28: =IFERROR(Продажи_tb[[#This Row],[Кол-во]]*VLOOKUP(Продажи_tb[[#This Row],[Товар]],$M$5:$N$7,2,),"") -> 630 | I28: =SUM($H$4:H27) -> 13370
D29: Май | E29: Стулья | F29: Сидоров | G29: 9 | H29: =IFERROR(Продажи_tb[[#This Row],[Кол-во]]*VLOOKUP(Продажи_tb[[#This Row],[Товар]],$M$5:$N$7,2,),"") -> 450 | I29: =SUM($H$4:H28) -> 14000
D30: Май | E30: Табретки | F30: Петров | G30: 13 | H30: =IFERROR(Продажи_tb[[#This Row],[Кол-во]]*VLOOKUP(Продажи_tb[[#This Row],[Товар]],$M$5:$N$7,2,),"") -> 780 | I30: =SUM($H$4:H29) -> 14450
D31: Май | E31: Диваны | F31: Петров | G31: 8 | H31: =IFERROR(Продажи_tb[[#This Row],[Кол-во]]*VLOOKUP(Продажи_tb[[#This Row],[Товар]],$M$5:$N$7,2,),"") -> 560 | I31: =SUM($H$4:H30) -> 15230
D32: Май | E32: Стулья | F32: Иванов | G32: 9 | H32: =IFERROR(Продажи_tb[[#This Row],[Кол-во]]*VLOOKUP(Продажи_tb[[#This Row],[Товар]],$M$5:$N$7,2,),"") -> 450 | I32: =SUM($H$4:H31) -> 15790
D33: Май | E33: Табретки | F33: Иванов | G33: 11 | H33: =IFERROR(Продажи_tb[[#This Row],[Кол-во]]*VLOOKUP(Продажи_tb[[#This Row],[Товар]],$M$5:$N$7,2,),"") -> 660 | I33: =SUM($H$4:H32) -> 16240
D34: Май | E34: Диваны | F34: Сидоров | G34: 8 | H34: =IFERROR(Продажи_tb[[#This Row],[Кол-во]]*VLOOKUP(Продажи_tb[[#This Row],[Товар]],$M$5:$N$7,2,),"") -> 560 | I34: =SUM($H$4:H33) -> 16900
D35: Июнь | E35: Стулья | F35: Петров | G35: 6 | H35: =IFERROR(Продажи_tb[[#This Row],[Кол-во]]*VLOOKUP(Продажи_tb[[#This Row],[Товар]],$M$5:$N$7,2,),"") -> 300 | I35: =SUM($H$4:H34) -> 17460
D36: Июнь | E36: Табретки | F36: Петров | G36: 7 | H36: =IFERROR(Продажи_tb[[#This Row],[Кол-во]]*VLOOKUP(Продажи_tb[[#This Row],[Товар]],$M$5:$N$7,2,),"") -> 420 | I36: =SUM($H$4:H35) -> 17760
D37: Июнь | E37: Диваны | F37: Петров | G37: 14 | H37: =IFERROR(Продажи_tb[[#This Row],[Кол-во]]*VLOOKUP(Продажи_tb[[#This Row],[Товар]],$M$5:$N$7,2,),"") -> 980 | I37: =SUM($H$4:H36) -> 18180
D38: Июнь | E38: Стулья | F38: Иванов | G38: 4 | H38: =IFERROR(Продажи_tb[[#This Row],[Кол-во]]*VLOOKUP(Продажи_tb[[#This Row],[Товар]],$M$5:$N$7,2,),"") -> 200 | I38: =SUM($H$4:H37) -> 19160
D39: Июнь | E39: Табретки | F39: Сидоров | G39: 13 | H39: =IFERROR(Продажи_tb[[#This Row],[Кол-во]]*VLOOKUP(Продажи_tb[[#This Row],[Товар]],$M$5:$N$7,2,),"") -> 780 | I39: =SUM($H$4:H38) -> 19360
D40: Июнь | E40: Диваны | F40: Иванов | G40: 8 | H40: =IFERROR(Продажи_tb[[#This Row],[Кол-во]]*VLOOKUP(Продажи_tb[[#This Row],[Товар]],$M$5:$N$7,2,),"") -> 560 | I40: =SUM($H$4:H39) -> 20140
D41: Июль | E41: Стулья | F41: Петров | G41: 9 | H41: =IFERROR(Продажи_tb[[#This Row],[Кол-во]]*VLOOKUP(Продажи_tb[[#This Row],[Товар]],$M$5:$N$7,2,),"") -> 450 | I41: =SUM($H$4:H40) -> 20700
D42: Июль | E42: Табретки | F42: Сидоров | G42: 13 | H42: =IFERROR(Продажи_tb[[#This Row],[Кол-во]]*VLOOKUP(Продажи_tb[[#This Row],[Товар]],$M$5:$N$7,2,),"") -> 780 | I42: =SUM($H$4:H41) -> 21150
D43: Июль | E43: Диваны | F43: Сидоров | G43: 12 | H43: =IFERROR(Продажи_tb[[#This Row],[Кол-во]]*VLOOKUP(Продажи_tb[[#This Row],[Товар]],$M$5:$N$7,2,),"") -> 840 | I43: =SUM($H$4:H42) -> 21930
D44: Июль | E44: Стулья | F44: Иванов | G44: 15 | H44: =IFERROR(Продажи_tb[[#This Row],[Кол-во]]*VLOOKUP(Продажи_tb[[#This Row],[Товар]],$M$5:$N$7,2,),"") -> 750 | I44: =SUM($H$4:H43) -> 22770
D45: Июль | E45: Табретки | F45: Иванов | G45: 2 | H45: =IFERROR(Продажи_tb[[#This Row],[Кол-во]]*VLOOKUP(Продажи_tb[[#This Row],[Товар]],$M$5:$N$7,2,),"") -> 120 | I45: =SUM($H$4:H44) -> 23520
D46: Июль | E46: Диваны | F46: Иванов | G46: 5 | H46: =IFERROR(Продажи_tb[[#This Row],[Кол-во]]*VLOOKUP(Продажи_tb[[#This Row],[Товар]],$M$5:$N$7,2,),"") -> 350 | I46: =SUM($H$4:H45) -> 23640
D47: Август | E47: Стулья | F47: Сидоров | G47: 5 | H47: =IFERROR(Продажи_tb[[#This Row],[Кол-во]]*VLOOKUP(Продажи_tb[[#This Row],[Товар]],$M$5:$N$7,2,),"") -> 250 | I47: =SUM($H$4:H46) -> 23990
D48: Август | E48: Табретки | F48: Петров | G48: 13 | H48: =IFERROR(Продажи_tb[[#This Row],[Кол-во]]*VLOOKUP(Продажи_tb[[#This Row],[Товар]],$M$5:$N$7,2,),"") -> 780 | I48: =SUM($H$4:H47) -> 24240
D49: Август | E49: Диваны | F49: Сидоров | G49: 6 | H49: =IFERROR(Продажи_tb[[#This Row],[Кол-во]]*VLOOKUP(Продажи_tb[[#This Row],[Товар]],$M$5:$N$7,2,),"") -> 420 | I49: =SUM($H$4:H48) -> 25020
D50: Август | E50: Стулья | F50: Иванов | G50: 3 | H50: =IFERROR(Продажи_tb[[#This Row],[Кол-во]]*VLOOKUP(Продажи_tb[[#This Row],[Товар]],$M$5:$N$7,2,),"") -> 150 | I50: =SUM($H$4:H49) -> 25440
D51: Август | E51: Табретки | F51: Сидоров | G51: 13 | H51: =IFERROR(Продажи_tb[[#This Row],[Кол-во]]*VLOOKUP(Продажи_tb[[#This Row],[Товар]],$M$5:$N$7,2,),"") -> 780 | I51: =SUM($H$4:H50) -> 25590
D52: Август | E52: Диваны | F52: Иванов | G52: 6 | H52: =IFERROR(Продажи_tb[[#This Row],[Кол-во]]*VLOOKUP(Продажи_tb[[#This Row],[Товар]],$M$5:$N$7,2,),"") -> 420 | I52: =SUM($H$4:H51) -> 26370
D53: Сентябрь | E53: Стулья | F53: Петров | G53: 11 | H53: =IFERROR(Продажи_tb[[#This Row],[Кол-во]]*VLOOKUP(Продажи_tb[[#This Row],[Товар]],$M$5:$N$7,2,),"") -> 550 | I53: =SUM($H$4:H52) -> 26790
D54: Сентябрь | E54: Табретки | F54: Петров | G54: 3 | H54: =IFERROR(Продажи_tb[[#This Row],[Кол-во]]*VLOOKUP(Продажи_tb[[#This Row],[Товар]],$M$5:$N$7,2,),"") -> 180 | I54: =SUM($H$4:H53) -> 27340
D55: Сентябрь | E55: Диваны | F55: Петров | G55: 12 | H55: =IFERROR(Продажи_tb[[#This Row],[Кол-во]]*VLOOKUP(Продажи_tb[[#This Row],[Товар]],$M$5:$N$7,2,),"") -> 840 | I55: =SUM($H$4:H54) -> 27520
D56: Сентябрь | E56: Стулья | F56: Иванов | G56: 2 | H56: =IFERROR(Продажи_tb[[#This Row],[Кол-во]]*VLOOKUP(Продажи_tb[[#This Row],[Товар]],$M$5:$N$7,2,),"") -> 100 | I56: =SUM($H$4:H55) -> 28360
D57: Сентябрь | E57: Табретки | F57: Иванов | G57: 13 | H57: =IFERROR(Продажи_tb[[#This Row],[Кол-во]]*VLOOKUP(Продажи_tb[[#This Row],[Товар]],$M$5:$N$7,2,),"") -> 780 | I57: =SUM($H$4:H56) -> 28460
D58: Сентябрь | E58: Диваны | F58: Сидоров | G58: 4 | H58: =IFERROR(Продажи_tb[[#This Row],[Кол-во]]*VLOOKUP(Продажи_tb[[#This Row],[Товар]],$M$5:$N$7,2,),"") -> 280 | I58: =SUM($H$4:H57) -> 29240
D59: Октябрь | E59: Стулья | F59: Петров | G59: 3 | H59: =IFERROR(Продажи_tb[[#This Row],[Кол-во]]*VLOOKUP(Продажи_tb[[#This Row],[Товар]],$M$5:$N$7,2,),"") -> 150 | I59: =SUM($H$4:H58) -> 29520
D60: Октябрь | E60: Табретки | F60: Петров | G60: 3 | H60: =IFERROR(Продажи_tb[[#This Row],[Кол-во]]*VLOOKUP(Продажи_tb[[#This Row],[Товар]],$M$5:$N$7,2,),"") -> 180 | I60: =SUM($H$4:H59) -> 29670
D61: Октябрь | E61: Диваны | F61: Петров | G61: 4 | H61: =IFERROR(Продажи_tb[[#This Row],[Кол-во]]*VLOOKUP(Продажи_tb[[#This Row],[Товар]],$M$5:$N$7,2,),"") -> 280 | I61: =SUM($H$4:H60) -> 29850
D62: Октябрь | E62: Стулья | F62: Иванов | G62: 2 | H62: =IFERROR(Продажи_tb[[#This Row],[Кол-во]]*VLOOKUP(Продажи_tb[[#This Row],[Товар]],$M$5:$N$7,2,),"") -> 100 | I62: =SUM($H$4:H61) -> 30130
D63: Октябрь | E63: Табретки | F63: Иванов | G63: 5 | H63: =IFERROR(Продажи_tb[[#This Row],[Кол-во]]*VLOOKUP(Продажи_tb[[#This Row],[Товар]],$M$5:$N$7,2,),"") -> 300 | I63: =SUM($H$4:H62) -> 30230
D64: Октябрь | E64: Диваны | F64: Сидоров | G64: 10 | H64: =IFERROR(Продажи_tb[[#This Row],[Кол-во]]*VLOOKUP(Продажи_tb[[#This Row],[Товар]],$M$5:$N$7,2,),"") -> 700 | I64: =SUM($H$4:H63) -> 30530
D65: Ноябрь | E65: Стулья | F65: Петров | G65: 11 | H65: =IFERROR(Продажи_tb[[#This Row],[Кол-во]]*VLOOKUP(Продажи_tb[[#This Row],[Товар]],$M$5:$N$7,2,),"") -> 550 | I65: =SUM($H$4:H64) -> 31230
D66: Ноябрь | E66: Табретки | F66: Петров | G66: 15 | H66: =IFERROR(Продажи_tb[[#This Row],[Кол-во]]*VLOOKUP(Продажи_tb[[#This Row],[Товар]],$M$5:$N$7,2,),"") -> 900 | I66: =SUM($H$4:H65) -> 31780
D67: Ноябрь | E67: Диваны | F67: Петров | G67: 7 | H67: =IFERROR(Продажи_tb[[#This Row],[Кол-во]]*VLOOKUP(Продажи_tb[[#This Row],[Товар]],$M$5:$N$7,2,),"") -> 490 | I67: =SUM($H$4:H66) -> 32680
D68: Ноябрь | E68: Стулья | F68: Иванов | G68: 4 | H68: =IFERROR(Продажи_tb[[#This Row],[Кол-во]]*VLOOKUP(Продажи_tb[[#This Row],[Товар]],$M$5:$N$7,2,),"") -> 200 | I68: =SUM($H$4:H67) -> 33170
D69: Ноябрь | E69: Табретки | F69: Сидоров | G69: 11 | H69: =IFERROR(Продажи_tb[[#This Row],[Кол-во]]*VLOOKUP(Продажи_tb[[#This Row],[Товар]],$M$5:$N$7,2,),"") -> 660 | I69: =SUM($H$4:H68) -> 33370
D70: Ноябрь | E70: Диваны | F70: Сидоров | G70: 8 | H70: =IFERROR(Продажи_tb[[#This Row],[Кол-во]]*VLOOKUP(Продажи_tb[[#This Row],[Товар]],$M$5:$N$7,2,),"") -> 560 | I70: =SUM($H$4:H69) -> 34030
D71: Декабрь | E71: Стулья | F71: Петров | G71: 14 | H71: =IFERROR(Продажи_tb[[#This Row],[Кол-во]]*VLOOKUP(Продажи_tb[[#This Row],[Товар]],$M$5:$N$7,2,),"") -> 700 | I71: =SUM($H$4:H70) -> 34590
D72: Декабрь | E72: Табретки | F72: Сидоров | G72: 2 | H72: =IFERROR(Продажи_tb[[#This Row],[Кол-во]]*VLOOKUP(Продажи_tb[[#This Row],[Товар]],$M$5:$N$7,2,),"") -> 120 | I72: =SUM($H$4:H71) -> 35290
D73: Декабрь | E73: Диваны | F73: Петров | G73: 7 | H73: =IFERROR(Продажи_tb[[#This Row],[Кол-во]]*VLOOKUP(Продажи_tb[[#This Row],[Товар]],$M$5:$N$7,2,),"") -> 490 | I73: =SUM($H$4:H72) -> 35410
D74: Декабрь | E74: Стулья | F74: Иванов | G74: 6 | H74: =IFERROR(Продажи_tb[[#This Row],[Кол-во]]*VLOOKUP(Продажи_tb[[#This Row],[Товар]],$M$5:$N$7,2,),"") -> 300 | I74: =SUM($H$4:H73) -> 35900
D75: Декабрь | E75: Табретки | F75: Иванов | G75: 11 | H75: =IFERROR(Продажи_tb[[#This Row],[Кол-во]]*VLOOKUP(Продажи_tb[[#This Row],[Товар]],$M$5:$N$7,2,),"") -> 660 | I75: =SUM($H$4:H74) -> 36200
D76: Декабрь | E76: Диваны | F76: Иванов | G76: 3 | H76: =IFERROR(Продажи_tb[[#This Row],[Кол-во]]*VLOOKUP(Продажи_tb[[#This Row],[Товар]],$M$5:$N$7,2,),"") -> 210 | I76: =SUM($H$4:H75) -> 36860

Sheet Итоги
D2: Месяц | E2: Товар
A3: Январь | D3: Июль | E3: Диваны
A4: Февраль
A5: Март
A6: Апрель | D6: Продавец | E6: Кол-во | F6: Сумма
A7: Май | D7: =IFERROR(INDEX(Продажи_tb[Продавец],MATCH(1,INDEX((COUNTIF(Итоги!$D$6:D6,Продажи_tb[Продавец])=0)*(Продажи_tb[Дата]=Критерии_tb[Месяц])*(Продажи_tb[Товар]=Критерии_tb[Товар]),),)),"") -> Сидоров | E7: =IFERROR(INDEX(Продажи_tb[Кол-во],MATCH(1,INDEX((COUNTIF(Итоги!$E$6:E6,Продажи_tb[Кол-во])=0)*(Продажи_tb[Дата]=Критерии_tb[Месяц])*(Продажи_tb[Товар]=Критерии_tb[Товар]),),)),"") -> 12 | F7: =IFERROR(INDEX(Продажи_tb[Сумма],MATCH(1,INDEX((COUNTIF(Итоги!$F$6:F6,Продажи_tb[Сумма])=0)*(Продажи_tb[Дата]=Критерии_tb[Месяц])*(Продажи_tb[Товар]=Критерии_tb[Товар]),),)),"") -> 840
A8: Июнь | D8: =IFERROR(INDEX(Продажи_tb[Продавец],MATCH(1,INDEX((COUNTIF(Итоги!$D$6:D7,Продажи_tb[Продавец])=0)*(Продажи_tb[Дата]=Критерии_tb[Месяц])*(Продажи_tb[Товар]=Критерии_tb[Товар]),),)),"") -> Иванов | E8: =IFERROR(INDEX(Продажи_tb[Кол-во],MATCH(1,INDEX((COUNTIF(Итоги!$E$6:E7,Продажи_tb[Кол-во])=0)*(Продажи_tb[Дата]=Критерии_tb[Месяц])*(Продажи_tb[Товар]=Критерии_tb[Товар]),),)),"") -> 5 | F8: =IFERROR(INDEX(Продажи_tb[Сумма],MATCH(1,INDEX((COUNTIF(Итоги!$F$6:F7,Продажи_tb[Сумма])=0)*(Продажи_tb[Дата]=Критерии_tb[Месяц])*(Продажи_tb[Товар]=Критерии_tb[Товар]),),)),"") -> 350
A9: Июль | D9: =IFERROR(INDEX(Продажи_tb[Продавец],MATCH(1,INDEX((COUNTIF(Итоги!$D$6:D8,Продажи_tb[Продавец])=0)*(Продажи_tb[Дата]=Критерии_tb[Месяц])*(Продажи_tb[Товар]=Критерии_tb[Товар]),),)),"") ->  | E9: =IFERROR(INDEX(Продажи_tb[Кол-во],MATCH(1,INDEX((COUNTIF(Итоги!$E$6:E8,Продажи_tb[Кол-во])=0)*(Продажи_tb[Дата]=Критерии_tb[Месяц])*(Продажи_tb[Товар]=Критерии_tb[Товар]),),)),"") ->  | F9: =IFERROR(INDEX(Продажи_tb[Сумма],MATCH(1,INDEX((COUNTIF(Итоги!$F$6:F8,Продажи_tb[Сумма])=0)*(Продажи_tb[Дата]=Критерии_tb[Месяц])*(Продажи_tb[Товар]=Критерии_tb[Товар]),),)),"") -> 
A10: Август
A11: Сентябрь
A12: Октябрь
A13: Ноябрь
A14: Декабрь
